bitfinex/quotes_SOLUSD_20230905
["timestamp","ask_amount","ask_price","bid_price","bid_amount"]
[1693920847042,7.943,19.64,19.625,20.0]
[1693920847344,7.943,19.64,19.626,55.0]
[1693920849033,7.943,19.64,19.625,20.0]
[1693920849241,55.0,19.639,19.623,20.0]
[1693920849448,7.945,19.635,19.623,20.0]
[1693920849926,7.945,19.635,19.622,20.0]
[1693920851330,7.945,19.635,19.623,55.0]
[1693920851532,7.945,19.635,19.624,20.0]
[1693920854449,7.945,19.635,19.621,31.54]
[1693920854643,55.0,19.634,19.621,31.54]
[1693920854843,33.62,19.631,19.621,31.54]
[1693920855149,33.62,19.631,19.611,0.60430668]
[1693920855351,33.62,19.631,19.613,0.60430668]
[1693920855647,33.62,19.631,19.615,0.60430668]
[1693920855848,7.946,19.631,19.615,75.0]
[1693920856032,7.946,19.631,19.616,0.60430668]
[1693920856434,7.946,19.631,19.616,25.96823913]
[1693920856649,7.946,19.631,19.618,0.60430668]
[1693920860449,7.946,19.631,19.617,55.0]
[1693920861247,33.619,19.631,19.618,0.60430668]
[1693920861448,33.619,19.631,19.617,55.0]
[1693920864557,7.948,19.626,19.616,0.60430668]
[1693920865858,7.948,19.626,19.615,20.0]
[1693920866547,55.0,19.63,19.616,0.54613393]
[1693920866548,7.948,19.628,19.616,0.54613393]
[1693920867044,7.948,19.628,19.615,0.60430668]
[1693920867244,7.948,19.628,19.615,20.60430668]
[1693920867450,7.948,19.628,19.615,20.0]
[1693920868254,7.948,19.628,19.616,0.50848477]
[1693920869061,7.948,19.628,19.615,20.0]
[1693920869461,7.948,19.628,19.616,0.49816221]
[1693920871253,55.0,19.63,19.616,0.49816221]
[1693920871450,7.947,19.63,19.616,55.49816221]
[1693920877269,55.0,19.629,19.616,0.49816221]
[1693920877460,7.949,19.626,19.615,20.0]
[1693920877660,7.949,19.626,19.612,20.0]
[1693920877967,7.949,19.626,19.613,0.60430668]
[1693920878166,55.0,19.625,19.613,0.60430668]
[1693920878351,62.949,19.625,19.613,0.60430668]
[1693920879058,62.949,19.625,19.612,0.60430668]
[1693920880659,62.949,19.625,19.602,111.73383245]
[1693920880660,88.63,19.625,19.602,111.73383245]
[1693920880967,88.63,19.625,19.61,31.58]
[1693920881362,62.949,19.625,19.61,31.58]
[1693920883273,62.949,19.625,19.605,45.36393245]
[1693920883476,62.949,19.625,19.606,0.60430668]
[1693920884683,62.949,19.625,19.606,55.60430668]
[1693920884887,62.949,19.625,19.606,80.96823913]
[1693920885071,62.949,19.625,19.61,31.58]
[1693920885270,62.949,19.625,19.605,20.0]
[1693920885574,62.949,19.625,19.606,0.60430668]
[1693920888782,62.949,19.625,19.605,20.0]
[1693920888783,7.952,19.616,19.605,0.60430668]
[1693920888976,7.952,19.616,19.605,20.0]
[1693920889175,7.952,19.616,19.606,0.60430668]
[1693920889694,7.952,19.616,19.602,20.60430668]
[1693920890891,55.0,19.615,19.602,20.60430668]
[1693920891572,99.5217,19.617,19.602,20.60430668]
[1693920891573,55.0,19.616,19.602,20.60430668]
[1693920891770,62.952,19.616,19.602,20.60430668]
[1693920892379,55.0,19.616,19.602,20.60430668]
[1693920893398,91.5697,19.617,19.602,20.60430668]
[1693920894575,91.5697,19.617,19.602,45.96823913]
[1693920894875,91.5697,19.617,19.603,146.98014862]
[1693920895081,91.5697,19.617,19.604,32.40420668]
[1693920895293,91.5697,19.617,19.605,55.0]
[1693920895480,7.951,19.619,19.606,0.60430668]
[1693920898989,25.685,19.623,19.606,0.60430668]
[1693920899200,96.5074,19.624,19.61,31.58]
[1693920899378,104.4564,19.624,19.61,31.58]
[1693920899788,7.949,19.624,19.611,55.0]
[1693920905700,7.949,19.624,19.61,31.58]
[1693920908206,7.949,19.624,19.611,55.0]
[1693920908606,15.35033145,19.629,19.613,0.49944169]
[1693920908607,7.947,19.629,19.613,0.49944169]
[1693920908804,119.795,19.632,19.613,55.49944169]
[1693920908805,94.123,19.632,19.613,55.49944169]
[1693920909104,102.069,19.632,19.62,31.58]
[1693920909507,7.946,19.632,19.62,31.58]
[1693920912899,7.946,19.632,19.614,37.15781245]
[1693920913095,7.946,19.632,19.615,87.39758668]
[1693920913310,7.946,19.632,19.616,11.79268]
[1693920913513,7.946,19.632,19.617,55.60430668]
[1693920914011,7.946,19.632,19.617,55.0]
[1693920914718,7.948,19.627,19.616,11.79268]
[1693920915915,7.947,19.63,19.616,11.79268]
[1693920918216,7.947,19.63,19.617,55.0]
[1693920918817,7.947,19.63,19.616,11.79268]
[1693920924316,92.5639,19.632,19.617,55.0]
[1693920925122,40.90200305,19.637,19.617,55.0]
[1693920925423,112.813,19.636,19.617,55.0]
[1693920926011,112.813,19.636,19.617,66.79208]
[1693920926210,7.945,19.634,19.617,66.79208]
[1693920926611,7.945,19.634,19.617,92.15601245]
[1693920930324,33.614,19.634,19.617,66.79208]
[1693920931125,112.813,19.636,19.617,66.79208]
[1693920931324,7.945,19.634,19.617,66.79208]
[1693920932914,7.945,19.634,19.62,31.56]
[1693920933325,33.614,19.634,19.62,31.56]
[1693920933524,55.0,19.633,19.617,66.79208]
[1693920933726,7.947,19.63,19.617,66.79208]
[1693920934330,55.0,19.633,19.62,31.56]
[1693920934527,7.946,19.632,19.62,31.56]
[1693920935128,92.813,19.636,19.621,20.0]
[1693920935333,92.813,19.636,19.622,55.60430668]
[1693920935519,92.813,19.636,19.623,20.0]
[1693920935719,92.813,19.636,19.624,55.0]
[1693920935926,92.813,19.636,19.625,20.0]
[1693920936126,7.944,19.638,19.625,20.0]
[1693920936329,25.66,19.641,19.625,20.0]
[1693920936330,107.3585,19.64,19.625,20.0]
[1693920937947,55.0,19.639,19.625,20.0]
[1693920938121,7.944,19.636,19.625,20.0]
[1693920939827,55.0,19.639,19.625,20.0]
[1693920940022,7.944,19.638,19.625,20.0]
[1693920940217,55.0,19.639,19.625,20.0]
[1693920940424,99.4155,19.64,19.625,20.0]
[1693920940631,391.5,19.642,19.626,55.0]
[1693920940930,0.89569331,19.641,19.627,11.78607]
[1693920941118,0.89569331,19.641,19.628,55.0]
[1693920941319,0.89569331,19.642,19.63,31.54]
[1693920941522,0.89569331,19.646,19.631,75.0]
[1693920941724,8.83569331,19.646,19.631,75.0]
[1693920943527,8.83569331,19.646,19.63,31.54]
[1693920943733,55.0,19.645,19.631,20.0]
[1693920944035,0.89569331,19.644,19.631,20.0]
[1693920944235,8.83669331,19.644,19.631,20.0]
[1693920945135,0.89569331,19.644,19.631,20.0]
[1693920945523,8.83669331,19.644,19.631,20.0]
[1693920946131,0.89569331,19.644,19.631,20.0]
[1693920949749,0.89569331,19.644,19.632,55.0]
[1693920949928,0.89569331,19.65,19.633,31.78247]
[1693920950132,0.89569331,19.65,19.634,55.0]
[1693920950435,0.89569331,19.65,19.635,20.0]
[1693920950636,0.89569331,19.65,19.636,55.0]
[1693920952148,55.89569331,19.651,19.636,55.0]
[1693920953534,0.89569331,19.651,19.636,55.0]
[1693920954137,8.83369331,19.651,19.636,55.0]
[1693920955438,0.89569331,19.651,19.636,55.0]
[1693920956333,7.938,19.652,19.637,11.78007]
[1693920956644,7.938,19.652,19.638,55.0]
[1693920956645,0.89569331,19.651,19.638,55.0]
[1693920957342,8.83369331,19.651,19.638,55.0]
[1693920960339,0.89569331,19.651,19.638,55.0]
[1693920960547,0.89569331,19.652,19.638,55.0]
[1693920960745,8.83369331,19.652,19.638,55.0]
[1693920961242,7.938,19.652,19.64,31.54]
[1693920961446,0.89569331,19.651,19.641,55.0]
[1693920963547,4.34030368,19.658,19.642,20.0]
[1693920963739,4.34030368,19.658,19.643,55.0]
[1693920963940,4.34030368,19.658,19.644,20.0]
[1693920964139,4.34030368,19.658,19.645,55.0]
[1693920965131,4.34030368,19.658,19.646,11.77467]
[1693920965330,4.34030368,19.658,19.65,31.49]
[1693920965851,4.34030368,19.659,19.65,31.49]
[1693920966142,7.935,19.659,19.646,11.77467]
[1693920966345,4.34030368,19.658,19.646,11.77467]
[1693920966847,12.27530368,19.658,19.644,20.0]
[1693920967033,12.27530368,19.658,19.643,20.0]
[1693920967231,55.0,19.657,19.64,31.49]
[1693920967454,55.0,19.657,19.641,20.0]
[1693920967642,7.938,19.653,19.641,20.0]
[1693920967842,4.34030368,19.652,19.641,20.0]
[1693920968246,4.34030368,19.652,19.639,31.49]
[1693920968247,4.34030368,19.656,19.64,51.49]
[1693920968554,4.34030368,19.654,19.64,51.49]
[1693920968745,12.27730368,19.654,19.641,55.0]
[1693920968933,12.27730368,19.654,19.642,20.0]
[1693920969351,4.34030368,19.654,19.642,20.0]
[1693920969537,157.127,19.666,19.642,20.0]
[1693920969538,4.34030368,19.66,19.643,55.0]
[1693920969733,4.34030368,19.66,19.643,66.77647]
[1693920970345,12.27430368,19.66,19.643,66.77647]
[1693920970547,12.27430368,19.66,19.644,11.77587]
[1693920970751,286.20031663,19.665,19.644,11.77587]
[1693920970752,3.84030368,19.661,19.645,55.0]
[1693920971059,3.84030368,19.661,19.646,11.77467]
[1693920971244,11.77430368,19.661,19.647,55.0]
[1693920972838,11.77430368,19.661,19.646,11.77467]
[1693920973037,7.936,19.656,19.646,11.77467]
[1693920973241,3.84030368,19.655,19.646,11.77467]
[1693920973745,3.84030368,19.657,19.642,19.5]
[1693920974358,11.77630368,19.657,19.642,19.5]
[1693920975545,11.77630368,19.657,19.643,55.0]
[1693920975745,11.77630368,19.657,19.644,20.0]
[1693920976444,11.77630368,19.657,19.642,20.0]
[1693920976854,3.84030368,19.657,19.641,20.0]
[1693920977159,3.84030368,19.658,19.642,55.0]
[1693920977359,11.77530368,19.658,19.643,20.0]
[1693920977941,11.77630368,19.656,19.643,20.0]
[1693920978146,3.84030368,19.656,19.643,20.0]
[1693920978359,3.84030368,19.658,19.643,20.0]
[1693920978557,3.84030368,19.662,19.644,66.77587]
[1693920978765,3.84030368,19.664,19.65,31.49]
[1693920979062,3.84030368,19.664,19.651,112.13561245]
[1693920979248,3.84030368,19.664,19.652,11.77108]
[1693920979443,3.84030368,19.664,19.653,75.0]
[1693920982251,3.84030368,19.664,19.653,86.77048]
[1693920987564,177.58109207,19.665,19.653,86.77048]
[1693920987872,399.431,19.67,19.654,3.15911881]
[1693920988172,7.931,19.67,19.654,3.15911881]
[1693920989452,39.421,19.67,19.654,3.15911881]
[1693920989758,7.933,19.665,19.653,20.0]
[1693920989956,7.932,19.667,19.652,2.71786259]
[1693920990159,62.932,19.666,19.651,20.0]
[1693920990370,62.932,19.666,19.652,2.59603289]
[1693920990968,62.932,19.666,19.649,31.49]
[1693920991175,62.932,19.666,19.64,157.45]
[1693920991176,7.935,19.659,19.645,2.95047156]
[1693920991361,7.935,19.659,19.64,31.49]
[1693920991362,7.935,19.659,19.642,3.76873747]
[1693920991770,7.935,19.659,19.642,35.25873747]
[1693920991968,7.934,19.661,19.644,3.76873747]
[1693920992151,7.935,19.659,19.644,3.76873747]
[1693920992874,7.935,19.659,19.644,58.76873747]
[1693920993055,7.935,19.659,19.646,3.76873747]
[1693920993868,7.935,19.659,19.645,20.0]
[1693920995065,7.936,19.656,19.645,20.0]
[1693920995262,7.936,19.656,19.642,3.39853804]
[1693920995469,7.936,19.656,19.642,58.39853804]
[1693920995777,7.936,19.656,19.644,3.39853804]
[1693920997870,7.936,19.658,19.644,3.39853804]
[1693920998076,7.936,19.657,19.644,3.39853804]
[1693920999585,7.939,19.649,19.631,88.48283804]
[1693920999782,7.939,19.649,19.632,20.0]
[1693920999967,7.939,19.649,19.633,4.94461036]
[1693921000664,25.648,19.651,19.633,4.94461036]
[1693921000665,7.94,19.647,19.633,4.94461036]
[1693921001675,55.0,19.648,19.633,4.94461036]
[1693921001873,62.939,19.648,19.633,4.94461036]
[1693921002080,62.939,19.648,19.633,24.94461036]
[1693921003290,62.939,19.648,19.633,4.94461036]
[1693921003483,62.939,19.648,19.631,4.94461036]
[1693921011386,45.36393245,19.647,19.626,4.94461036]
[1693921011585,7.942,19.641,19.621,24.94461036]
[1693921011798,55.0,19.64,19.621,77.33305835]
[1693921011977,7.944,19.637,19.621,118.36928036]
[1693921012177,7.944,19.637,19.621,36.73428036]
[1693921012389,97.1912,19.64,19.622,11.78907]
[1693921012577,97.1912,19.64,19.623,24.94461036]
[1693921012978,7.941,19.643,19.624,11.78787]
[1693921013185,7.941,19.644,19.625,79.94461036]
[1693921013374,7.941,19.644,19.626,11.78667]
[1693921013690,7.941,19.644,19.627,59.94461036]
[1693921014484,55.0,19.643,19.627,59.94461036]
[1693921014794,7.942,19.641,19.627,59.94461036]
[1693921018587,7.942,19.641,19.627,4.94461036]
[1693921020481,62.943,19.64,19.627,4.94461036]
[1693921020684,62.943,19.64,19.624,4.94461036]
[1693921020891,62.943,19.64,19.624,24.94461036]
[1693921022200,88.604,19.64,19.624,24.94461036]
[1693921024900,120.094,19.64,19.624,24.94461036]
[1693921025113,176.102,19.64,19.624,4.94461036]
[1693921025292,327.42593245,19.64,19.617,4.94461036]
[1693921025491,45.36393245,19.639,19.617,4.94461036]
[1693921025807,33.617,19.633,19.617,4.94461036]
[1693921025986,55.0,19.632,19.617,4.94461036]
[1693921026193,7.947,19.63,19.617,4.94461036]
[1693921027202,55.0,19.629,19.617,4.94461036]
[1693921027398,55.0,19.629,19.612,24.94461036]
[1693921027710,7.948,19.628,19.612,24.94461036]
[1693921028098,7.947,19.63,19.612,24.94461036]
[1693921028793,7.947,19.63,19.613,11.79448]
[1693921029097,7.947,19.63,19.614,24.94461036]
[1693921029303,7.947,19.63,19.616,4.94461036]
[1693921029499,7.947,19.63,19.618,4.94461036]
[1693921029693,7.947,19.63,19.616,4.94461036]
[1693921029901,7.947,19.63,19.618,4.94461036]
[1693921030222,7.947,19.63,19.616,4.94461036]
[1693921030404,7.947,19.63,19.617,55.0]
[1693921030715,7.947,19.63,19.618,4.94461036]
[1693921035600,106.7756,19.632,19.62,4.94461036]
[1693921035798,106.7756,19.632,19.622,4.94461036]
[1693921035994,106.7756,19.632,19.619,4.94461036]
[1693921036186,25.669,19.634,19.621,4.94461036]
[1693921036187,7.945,19.634,19.621,4.94461036]
[1693921036398,7.944,19.637,19.623,4.94461036]
[1693921036598,7.944,19.637,19.623,24.94461036]
[1693921037006,33.609,19.637,19.621,4.94461036]
[1693921037196,33.609,19.637,19.621,24.94461036]
[1693921037400,33.609,19.637,19.622,20.0]
[1693921037708,7.946,19.633,19.62,4.94461036]
[1693921039496,7.945,19.635,19.62,4.94461036]
[1693921039701,55.0,19.634,19.62,4.94461036]
[1693921039910,62.945,19.634,19.62,4.94461036]
[1693921040209,7.945,19.634,19.62,4.94461036]
[1693921041699,7.944,19.636,19.62,4.94461036]
[1693921041908,7.944,19.636,19.621,55.0]
[1693921042111,7.944,19.636,19.622,4.94461036]
[1693921042413,7.944,19.636,19.622,24.94461036]
[1693921050915,55.0,19.635,19.622,24.94461036]
[1693921051121,62.945,19.635,19.622,4.94461036]
[1693921052413,118.967,19.635,19.619,4.94461036]
[1693921052716,118.967,19.635,19.618,11.79148]
[1693921053319,118.967,19.635,19.619,4.94461036]
[1693921053914,31.55,19.63,19.618,11.79148]
[1693921054116,7.948,19.627,19.618,11.79148]
[1693921054314,7.948,19.627,19.612,4.94461036]
[1693921054622,7.948,19.627,19.613,55.0]
[1693921054822,7.948,19.627,19.614,24.94461036]
[1693921056415,7.948,19.627,19.616,4.94461036]
[1693921056719,62.948,19.626,19.613,4.94461036]
[1693921056921,55.0,19.626,19.613,4.94461036]
[1693921057117,55.0,19.627,19.613,4.94461036]
[1693921057312,62.948,19.627,19.613,4.94461036]
[1693921057815,91.8289,19.626,19.613,4.94461036]
[1693921058014,55.0,19.625,19.613,4.94461036]
[1693921058217,91.8289,19.626,19.614,55.0]
[1693921058523,91.8289,19.626,19.615,24.94461036]
[1693921059019,7.948,19.628,19.615,24.94461036]
[1693921059325,31.55,19.63,19.616,55.0]
[1693921059525,7.947,19.629,19.617,4.94461036]
[1693921062917,7.947,19.629,19.616,55.0]
[1693921063318,7.947,19.629,19.617,2.78477251]
[1693921063743,7.946,19.631,19.617,2.78477251]
[1693921063943,7.944,19.636,19.62,31.55]
[1693921064118,31.55,19.64,19.621,78.11764671]
[1693921064319,39.493,19.64,19.622,4.03058019]
[1693921064735,92.1357,19.639,19.622,4.03058019]
[1693921065928,92.1357,19.639,19.623,11.78847]
[1693921066123,92.1357,19.639,19.624,79.03058019]
[1693921067447,7.942,19.642,19.63,31.55]
[1693921067649,99.8991,19.647,19.631,79.03058019]
[1693921068020,99.8991,19.647,19.631,104.39451264]
[1693921068534,99.8991,19.647,19.633,4.03058019]
[1693921068731,99.8991,19.647,19.633,79.03058019]
[1693921070840,99.8991,19.647,19.633,90.81305019]
[1693921071039,107.8391,19.647,19.633,90.81305019]
[1693921071737,107.8391,19.647,19.633,35.81305019]
[1693921074830,107.8391,19.647,19.634,55.0]
[1693921075031,107.8391,19.647,19.635,24.03058019]
[1693921075347,107.8391,19.647,19.635,20.0]
[1693921075535,55.0,19.646,19.635,20.0]
[1693921075736,7.941,19.644,19.634,20.0]
[1693921076139,62.94,19.646,19.634,20.0]
[1693921076448,7.94,19.646,19.634,20.0]
[1693921077656,99.8991,19.647,19.634,20.0]
[1693921078153,107.8391,19.647,19.634,20.0]
[1693921079861,133.4911,19.647,19.634,20.0]
[1693921080660,107.8391,19.647,19.634,20.0]
[1693921080840,107.8391,19.647,19.635,2.53924718]
[1693921082756,107.8391,19.647,19.634,20.0]
[1693921082967,55.0,19.646,19.633,11.78247]
[1693921083149,55.0,19.646,19.634,20.0]
[1693921083455,99.8991,19.647,19.634,20.0]
[1693921084354,99.8991,19.647,19.635,55.0]
[1693921084859,107.8391,19.647,19.635,55.0]
[1693921085249,99.8991,19.647,19.635,55.0]
[1693921085444,391.5,19.652,19.635,55.0]
[1693921085656,91.8981,19.653,19.637,3.01137235]
[1693921085867,91.8981,19.653,19.638,11.77947]
[1693921086073,99.8351,19.653,19.638,11.77947]
[1693921086751,99.8351,19.653,19.64,31.51]
[1693921086752,91.8981,19.653,19.64,31.51]
[1693921086956,91.8981,19.653,19.641,23.71805772]
[1693921087853,7.937,19.654,19.641,23.71805772]
[1693921088661,7.938,19.652,19.641,23.71805772]
[1693921088852,7.938,19.652,19.642,20.0]
[1693921089067,55.0,19.653,19.64,3.71805772]
[1693921089382,62.937,19.653,19.64,3.71805772]
[1693921089579,62.937,19.653,19.639,3.71805772]
[1693921089756,99.8659,19.652,19.639,3.71805772]
[1693921089965,7.939,19.649,19.631,4.94461036]
[1693921090269,55.0,19.648,19.632,11.78307]
[1693921090471,62.94,19.648,19.633,4.94461036]
[1693921090873,62.94,19.648,19.633,24.94461036]
[1693921091171,55.0,19.648,19.633,24.94461036]
[1693921091977,7.938,19.651,19.633,24.94461036]
[1693921092177,55.0,19.65,19.633,24.94461036]
[1693921092379,55.0,19.651,19.633,24.94461036]
[1693921092582,7.939,19.65,19.633,24.94461036]
[1693921092874,7.939,19.65,19.635,4.94461036]
[1693921093078,7.939,19.65,19.635,24.94461036]
[1693921093265,7.938,19.651,19.635,24.94461036]
[1693921093462,99.8659,19.652,19.637,4.94461036]
[1693921093661,99.8659,19.652,19.638,25.36393245]
[1693921093878,99.8659,19.652,19.64,4.94461036]
[1693921094178,99.8659,19.652,19.642,4.94461036]
[1693921094380,7.936,19.657,19.643,55.0]
[1693921094564,7.937,19.655,19.644,4.94461036]
[1693921094876,7.937,19.655,19.644,24.94461036]
[1693921095066,7.937,19.655,19.644,20.0]
[1693921095267,7.937,19.655,19.645,2.52666455]
[1693921095577,7.937,19.655,19.645,20.0]
[1693921095985,7.936,19.657,19.645,20.0]
[1693921096275,7.936,19.657,19.644,20.0]
[1693921096581,7.936,19.657,19.645,2.60786382]
[1693921097471,7.936,19.657,19.644,20.0]
[1693921099683,107.8577,19.659,19.644,20.0]
[1693921099980,55.0,19.658,19.644,20.0]
[1693921100975,107.8577,19.659,19.644,20.0]
[1693921101180,99.9227,19.659,19.645,55.0]
[1693921101567,107.8577,19.659,19.645,55.0]
[1693921102079,7.935,19.659,19.646,2.82587795]
[1693921102671,7.935,19.659,19.645,55.0]
[1693921105289,7.934,19.661,19.645,55.0]
[1693921105579,7.934,19.661,19.646,2.90280057]
[1693921106479,95.6907,19.665,19.651,3.66430502]
[1693921106679,95.6907,19.665,19.651,58.66430502]
[1693921106878,95.6907,19.665,19.653,3.66430502]
[1693921107184,95.6907,19.665,19.653,58.66430502]
[1693921107381,7.931,19.668,19.654,20.0]
[1693921108679,7.931,19.669,19.655,55.0]
[1693921108985,167.63462163,19.672,19.655,55.0]
[1693921109187,7.93,19.671,19.656,2.53748]
[1693921109679,167.63462163,19.672,19.655,55.0]
[1693921110083,167.63462163,19.672,19.656,2.52152426]
[1693921110271,175.56462163,19.672,19.656,2.52152426]
[1693921110679,175.56462163,19.672,19.655,66.76928]
[1693921111674,55.0,19.671,19.655,66.76928]
[1693921111982,7.931,19.668,19.655,66.76928]
[1693921112692,7.931,19.67,19.655,66.76928]
[1693921115570,7.931,19.67,19.655,11.76928]
[1693921115772,7.932,19.666,19.655,11.76928]
[1693921118187,55.0,19.669,19.655,11.76928]
[1693921118393,62.931,19.669,19.655,11.76928]
[1693921120395,62.931,19.669,19.654,20.0]
[1693921120595,62.931,19.669,19.651,20.0]
[1693921120891,62.931,19.669,19.652,3.50873764]
[1693921121392,62.931,19.669,19.651,3.97366499]
[1693921121774,62.931,19.669,19.651,58.97366499]
[1693921121992,62.931,19.669,19.652,20.0]
[1693921122185,62.931,19.669,19.653,58.97366499]
[1693921122386,62.931,19.669,19.654,20.0]
[1693921123186,62.931,19.669,19.65,22.97413178]
[1693921123386,62.931,19.669,19.651,55.0]
[1693921123583,62.931,19.669,19.652,24.41921699]
[1693921125995,7.931,19.669,19.652,24.41921699]
[1693921127197,55.0,19.668,19.652,24.41921699]
[1693921127393,7.932,19.666,19.652,24.41921699]
[1693921128696,7.931,19.668,19.653,55.0]
[1693921128905,7.931,19.668,19.654,24.41921699]
[1693921130695,55.0,19.667,19.654,24.41921699]
[1693921130899,7.932,19.666,19.655,20.0]
[1693921131194,100.2731,19.666,19.651,4.41921699]
[1693921131395,100.2731,19.666,19.651,59.41921699]
[1693921131598,100.2731,19.666,19.653,4.41921699]
[1693921132990,92.3411,19.666,19.653,4.41921699]
[1693921133191,92.3411,19.666,19.653,59.41921699]
[1693921133391,7.932,19.665,19.655,4.41921699]
[1693921133593,7.932,19.665,19.654,20.0]
[1693921133782,7.932,19.665,19.65,4.41921699]
[1693921133987,7.932,19.667,19.65,91.19148699]
[1693921134300,100.4218,19.669,19.65,116.55541944]
[1693921134492,55.0,19.668,19.65,116.55541944]
[1693921136301,92.4908,19.669,19.65,116.55541944]
[1693921136500,92.4908,19.669,19.651,25.36393245]
[1693921136812,31.51,19.67,19.652,79.81528892]
[1693921136996,55.0,19.669,19.652,79.81528892]
[1693921137398,129.5973,19.67,19.652,105.17922137]
[1693921137605,98.0873,19.67,19.653,25.36393245]
[1693921137798,98.0873,19.67,19.654,79.81528892]
[1693921138701,98.0873,19.67,19.654,91.58516892]
[1693921142504,98.0873,19.67,19.655,11.76928]
[1693921142707,98.0873,19.67,19.656,59.81528892]
[1693921142909,98.0873,19.67,19.656,55.0]
[1693921143999,167.63462163,19.672,19.656,55.0]
[1693921144315,167.63462163,19.672,19.657,3.76627232]
[1693921145612,167.63462163,19.672,19.66,31.51]
[1693921145816,167.63462163,19.672,19.661,79.67576652]
[1693921146016,96.1497,19.677,19.661,79.67576652]
[1693921146214,7.927,19.68,19.661,79.67576652]
[1693921146417,391.5,19.681,19.662,11.76509]
[1693921146721,7.927,19.68,19.663,79.67576652]
[1693921149214,7.927,19.68,19.665,4.67576652]
[1693921149414,7.927,19.68,19.666,55.0]
[1693921149812,7.927,19.68,19.665,55.0]
[1693921150412,7.927,19.68,19.664,11.76389]
[1693921150613,7.928,19.675,19.665,20.0]
[1693921153218,33.544,19.675,19.659,2.90656129]
[1693921153416,33.544,19.675,19.659,89.67345129]
[1693921153915,7.928,19.675,19.66,11.76629]
[1693921154117,7.928,19.675,19.662,3.42303983]
[1693921156611,7.928,19.677,19.662,3.42303983]
[1693921157023,7.928,19.677,19.662,15.18812983]
[1693921157315,7.928,19.677,19.663,20.0]
[1693921157523,7.928,19.677,19.664,3.42303983]
[1693921158234,55.0,19.676,19.664,3.42303983]
[1693921158528,7.929,19.674,19.663,20.0]
[1693921159817,7.929,19.674,19.658,22.52697642]
[1693921160024,7.929,19.674,19.659,55.0]
[1693921160212,7.929,19.674,19.66,23.84927639]
[1693921160920,55.0,19.673,19.66,3.84927639]
[1693921161123,7.931,19.67,19.651,24.94461036]
[1693921161320,55.0,19.669,19.651,36.71629036]
[1693921161620,62.931,19.669,19.651,36.71629036]
[1693921161820,62.931,19.669,19.651,62.08022281]
[1693921162325,62.931,19.669,19.652,55.0]
[1693921162617,62.931,19.669,19.653,24.94461036]
[1693921162821,7.931,19.669,19.655,4.94461036]
[1693921163013,7.931,19.669,19.655,24.94461036]
[1693921163825,55.0,19.668,19.655,24.94461036]
[1693921164020,7.933,19.665,19.655,4.94461036]
[1693921164210,7.933,19.665,19.654,4.94461036]
[1693921165324,98.1955,19.667,19.654,4.94461036]
[1693921165524,55.0,19.666,19.654,4.94461036]
[1693921167616,55.0,19.666,19.651,4.94461036]
[1693921169724,98.1955,19.667,19.652,55.0]
[1693921170025,98.1955,19.667,19.653,24.94461036]
[1693921170422,7.932,19.667,19.653,24.94461036]